[Event "29th Czech Open-Rapid 2018"]
[Site "Pardubice"]
[Date "2018.07.18"]
[Round "1"]
[White "Zdrazil, Tomas"]
[Black "Piscopo, Pierluigi"]
[Result "*"]
[ECO "B43"]
[WhiteElo "2065"]
[BlackElo "2389"]
[Annotator "NA"]
[PlyCount "49"]
[EventDate "2018.07.18"]
[EventType "swiss"]
[EventCountry "CZE"]
[SourceTitle "playchess.com"]
[Source "ChessBase"]
[SourceQuality "1"]
[TimeControl "900+10"]

1. e4 {[%emt 0:00:00]} c5 {[%emt 0:00:00]} 2. Nf3 {[%emt 0:00:00]} e6 {[%emt 0:00:00]} 3. d4 {[%emt 0:00:00]} cxd4 {[%emt 0:00:00]} 4. Nxd4 {[%emt 0:00:00]} a6 {[%emt 0:00:00]} 5. Nc3 {[%emt 0:00:03]} b5 {[%emt 0:00:02]} 6. Bd3 {[%emt 0:02:30]} Qb6 {[%emt 0:00:03]} 7. Nb3 {[%emt 0:00:36]} Qc7 {[%emt 0:00:11]} 8. O-O {[%emt 0:00:39]} Nf6 {[%emt 0:01:56]} 9. f4 {[%emt 0:02:27]} Bb7 {[%emt 0:00:18]} 10. e5 {[%emt 0:00:56]} b4 {[%emt 0:00:04]} 11. exf6 {[%emt 0:00:59]} bxc3 {[%emt 0:00:08]} 12. Qe2 {[%emt 0:03:52]} gxf6 {[%emt 0:01:40]} 13. bxc3 {[%emt 0:00:09]} Nc6 {[%emt 0:03:23]} 14. Rb1 {[%emt 0:00:36]} Ne7 {[%emt 0:01:12]} 15. c4 {[%emt 0:00:59]} f5 {[%emt 0:01:51]} 16. Bd2 {[%emt 0:00:18]} Rg8 {[%emt 0:00:07]} 17. Rf2 {[%emt 0:00:04]} Rc8 {[%emt 0:00:52]} 18. Ba5 {[%emt 0:01:02]} Qd6 {[%emt 0:00:05]} 19. Bc3 {[%emt 0:01:11]} Ng6 {[%emt 0:00:12]} 20. Be5 {[%emt 0:01:27]} Nxe5 {[%emt 0:00:10]} 21. fxe5 {[%emt 0:00:01]} Qb6 {[%emt 0:00:09]} 22. c5 {[%emt 0:00:11]} Rxc5 {[%emt 0:00:44]} 23. Nd2 {[%emt 0:00:08]} Qa7 {[%emt 0:01:29]} 24. Kf1 {[%emt 0:00:09]} Rc7 {[%emt 0:00:13]} 25. Nb3 {[%emt 0:00:18]} *

[Event "29th Czech Open-Rapid 2018"]
[Site "Pardubice"]
[Date "2018.07.18"]
[Round "1"]
[White "Hauschild, Rudolf jun"]
[Black "Mirzoeva, Elmira"]
[Result "1-0"]
[ECO "C41"]
[WhiteElo "2015"]
[BlackElo "2249"]
[Annotator "NA RC"]
[PlyCount "203"]
[EventDate "2018.07.18"]
[EventType "swiss"]
[EventCountry "CZE"]
[SourceTitle "playchess.com"]
[Source "ChessBase"]
[SourceQuality "1"]
[TimeControl "900+10"]

1. e4 {[%emt 0:00:00]} d6 {[%emt 0:00:00]} 2. d4 {[%emt 0:00:00]} Nf6 {[%emt 0:00:00]} 3. Nc3 {[%emt 0:00:23]} e5 {[%emt 0:00:05]} 4. Nf3 {[%emt 0:00:29]} Nbd7 {[%emt 0:00:06]} 5. dxe5 {[%emt 0:01:00]} dxe5 {[%emt 0:01:40]} 6. Bc4 {[%emt 0:00:52]} Bb4 {[%emt 0:01:40]} 7. Qe2 {[%emt 0:00:56]} O-O {[%emt 0:00:10]} 8. O-O {[%emt 0:00:04]} c6 {[%emt 0:00:14]} 9. a4 {[%emt 0:00:35]} Qe7 {[%emt 0:01:12]} 10. h3 {[%emt 0:00:32]} a5 {[%emt 0:00:20]} 11. Rd1 {[%emt 0:00:33]} Nc5 {[%emt 0:00:24]} 12. Bg5 {[%emt 0:00:37]} h6 {[%emt 0:00:41]} 13. Bxf6 {[%emt 0:00:21]} Qxf6 {[%emt 0:00:02]} 14. Kh1 {[%emt 0:01:16]} Be6 {[%emt 0:02:21]} 15. Bxe6 {[%emt 0:04:02]} Qxe6 {[%emt 0:01:31]} 16. Nb1 {[%emt 0:01:40]} Rfd8 {[%emt 0:01:09]} 17. Nbd2 {[%emt 0:00:42]} Nd7 {[%emt 0:01:07]} 18. c3 {[%emt 0:00:34]} Bc5 {[%emt 0:00:04]} 19. Nc4 {[%emt 0:00:12]} f6 {[%emt 0:01:23]} 20. b3 {[%emt 0:01:00]} Be7 {[%emt 0:00:12]} 21. Qc2 {[%emt 0:01:41]} Nc5 {[%emt 0:00:21]} 22. Rd2 {[%emt 0:00:58]} Rxd2 {[%emt 0:00:23]} 23. Nfxd2 {[%emt 0:00:02]} Bd8 {[%emt 0:00:25]} 24. b4 {[%emt 0:00:15]} axb4 {[%emt 0:00:11]} 25. cxb4 {[%emt 0:00:01]} Nd7 {[%emt 0:00:09]} 26. a5 {[%emt 0:00:23]} Be7 {[%emt 0:00:04]} 27. Qc3 {[%emt 0:00:10]} Bf8 {[%emt 0:00:30]} 28. Rb1 {[%emt 0:00:10]} Kh7 {[%emt 0:00:08]} 29. Rd1 {[%emt 0:00:10]} Be7 {[%emt 0:00:20]} 30. Rb1 {[%emt 0:00:10]} Rd8 {[%emt 0:00:12]} 31. Qc2 {[%emt 0:00:10]} Nb8 {[%emt 0:00:04]} 32. Nb6 {[%emt 0:00:10]} Na6 {[%emt 0:00:07]} 33. b5 {[%emt 0:00:02]} Nb4 {[%emt 0:00:44]} 34. Qc4 {[%emt 0:00:18]} Qxc4 {[%emt 0:00:18]} 35. Ndxc4 {[%emt 0:00:03]} cxb5 {[%emt 0:00:01]} 36. Ne3 {[%emt 0:00:13]} Rd4 {[%emt 0:01:09]} 37. f3 {[%emt 0:00:13]} Bc5 {[%emt 0:00:21]} 38. Ned5 {[%emt 0:00:12]} Nxd5 {[%emt 0:00:24]} 39. Nxd5 {[%emt 0:00:09]} b4 {[%emt 0:00:06]} 40. Rc1 {[%emt 0:00:01]} Bd6 {[%emt 0:00:02]} 41. Kg1 {[%emt 0:00:19]} b3 {[%emt 0:00:17]} 42. Rb1 {[%emt 0:00:06]} Bc5 {[%emt 0:00:53]} 43. Kf1 {[%emt 0:00:07]} Rd2 {[%emt 0:00:07]} 44. Rxb3 {[%emt 0:00:16]} Rf2+ {[%emt 0:00:02]} 45. Ke1 {[%emt 0:00:05]} Rxg2 {[%emt 0:00:12]} 46. Rxb7 {[%emt 0:00:02]} Ra2 {[%emt 0:00:04]} 47. Nxf6+ {[%emt 0:00:17]} Kg6 {[%emt 0:00:01]} 48. Ne8 {[%emt 0:00:12]} Bf8 {[%emt 0:00:04]} 49. Rb5 {[%emt 0:00:05]} Rxa5 50. Rxa5 {[%emt 0:00:16]} Bb4+ {[%emt 0:00:05]} 51. Kf2 {[%emt 0:00:11]} Bxa5 {[%emt 0:00:01]} 52. Kg2 {[%emt 0:00:03]} Be1 {[%emt 0:01:03]} 53. Nc7 {[%emt 0:00:19]} Kf6 {[%emt 0:00:09]} 54. Nd5+ {[%emt 0:00:02]} Ke6 {[%emt 0:00:02]} 55. Ne3 {[%emt 0:00:04]} g6 {[%emt 0:00:08]} 56. Nc4 {[%emt 0:00:17]} h5 {[%emt 0:00:06]} 57. Ne3 Bh4 {[%emt 0:00:09]} 58. Nd1 {[%emt 0:00:18]} Kd6 {[%emt 0:00:04]} 59. Ne3 {[%emt 0:00:05]} Kc5 {[%emt 0:00:01]} 60. Kf1 {[%emt 0:00:24]} Kd4 {[%emt 0:00:14]} 61. Ke2 {[%emt 0:00:01]} Bf6 {[%emt 0:00:21]} 62. Nc2+ {[%emt 0:00:07]} Kc3 {[%emt 0:00:03]} 63. Ne3 {[%emt 0:00:03]} Bg5 {[%emt 0:00:07]} 64. Nd1+ {[%emt 0:00:01]} Kc2 {[%emt 0:00:02]} 65. Nf2 {[%emt 0:00:04]} Bf4 {[%emt 0:00:29]} 66. Nd3 {[%emt 0:00:04]} Bg3 {[%emt 0:00:05]} 67. Nc5 {[%emt 0:00:10]} Kc3 {[%emt 0:00:17]} 68. Nd7 {[%emt 0:00:14]} Kd4 {[%emt 0:00:22]} 69. Nf8 {[%emt 0:00:12]} Kc5 {[%emt 0:00:25]} 70. Nxg6 {[%emt 0:00:39]} Kd6 {[%emt 0:00:02]} 71. Ke3 {[%emt 0:00:01]} Kd7 {[%emt 0:00:21]} 72. f4 {[%emt 0:00:07]} exf4+ {[%emt 0:00:05]} 73. Nxf4 {[%emt 0:00:02]} h4 {[%emt 0:00:01]} 74. Kf3 {[%emt 0:00:09]} Kd6 {[%emt 0:00:05]} 75. Ng6 {[%emt 0:00:24]} Ke6 {[%emt 0:00:08]} 76. Kg4 {[%emt 0:00:07]} Bf2 {[%emt 0:00:07]} 77. Nf4+ {[%emt 0:00:14]} Kf6 {[%emt 0:00:15]} 78. e5+ {[%emt 0:00:08]} Kf7 {[%emt 0:00:06]} 79. Kf5 {[%emt 0:00:03]} Bc5 {[%emt 0:00:24]} 80. e6+ {[%emt 0:00:06]} Ke8 {[%emt 0:00:03]} 81. Nd5 {[%emt 0:00:17]} Bd6 {[%emt 0:00:08]} 82. Nf6+ {[%emt 0:00:11]} Ke7 {[%emt 0:00:04]} 83. Ne4 {[%emt 0:00:14]} Bb4 {[%emt 0:00:07]} 84. Nf6 {[%emt 0:00:16]} Bd6 {[%emt 0:00:07]} 85. Nd5+ {[%emt 0:00:06]} Ke8 {[%emt 0:00:02]} 86. Kf6 {[%emt 0:00:03]} Bg3 {[%emt 0:00:48]} 87. e7 {[%emt 0:00:09]} Bd6 {[%emt 0:00:11]} 88. Ke6 {[%emt 0:00:11]} Bxe7 {[%emt 0:00:05]} 89. Nxe7 {[%emt 0:00:01]} Kf8 {[%emt 0:00:01]} 90. Ng6+ {[%emt 0:00:11]} Kg7 {[%emt 0:00:01]} 91. Kf5 {[%emt 0:00:02]} Kh6 {[%emt 0:00:03]} 92. Nxh4 {[%emt 0:00:06]} Kh5 {[%emt 0:00:01]} 93. Nf3 {[%emt 0:00:07]} Kh6 {[%emt 0:00:01]} 94. h4 {[%emt 0:00:02]} Kh5 {[%emt 0:00:01]} 95. Kf4 {[%emt 0:00:08]} Kh6 {[%emt 0:00:02]} 96. Kg4 {[%emt 0:00:02]} Kg6 {[%emt 0:00:01]} 97. h5+ {[%emt 0:00:02]} Kh6 {[%emt 0:00:01]} 98. Ne5 {[%emt 0:00:08]} Kg7 {[%emt 0:00:02]} 99. Kg5 {[%emt 0:00:02]} Kh7 {[%emt 0:00:01]} 100. h6 {[%emt 0:00:05]} Kg8 {[%emt 0:00:03]} 101. Kg6 {[%emt 0:00:06]} Kh8 {[%emt 0:00:01]} 102. Nf7+ {[%emt 0:00:01]} 1-0

[Event "29th Czech Open-Rapid 2018"]
[Site "Pardubice"]
[Date "2018.07.18"]
[Round "1"]
[White "Zarovs, Aleksandrs"]
[Black "Gomes, Mary Ann"]
[Result "0-1"]
[ECO "B51"]
[WhiteElo "1836"]
[BlackElo "2284"]
[Annotator "NA"]
[PlyCount "58"]
[EventDate "2018.07.18"]
[EventType "swiss"]
[EventCountry "CZE"]
[SourceTitle "playchess.com"]
[Source "ChessBase"]
[SourceQuality "1"]
[TimeControl "900+10"]

1. e4 {[%emt 0:00:00]} c5 {[%emt 0:00:00]} 2. Nf3 {[%emt 0:00:00]} d6 {[%emt 0:00:00]} 3. Bb5+ {[%emt 0:00:00]} Nd7 {[%emt 0:00:00]} 4. d4 {[%emt 0:00:00]} cxd4 {[%emt 0:00:00]} 5. Qxd4 {[%emt 0:00:00]} a6 {[%emt 0:00:02]} 6. Bxd7+ {[%emt 0:00:00]} Bxd7 {[%emt 0:00:02]} 7. c4 {[%emt 0:00:00]} e5 {[%emt 0:00:01]} 8. Qd3 {[%emt 0:00:02]} h6 {[%emt 0:00:02]} 9. Nc3 {[%emt 0:00:02]} Nf6 {[%emt 0:00:01]} 10. O-O {[%emt 0:00:02]} Rc8 {[%emt 0:00:03]} 11. b3 {[%emt 0:00:10]} Be7 {[%emt 0:00:10]} 12. Rd1 {[%emt 0:00:06]} O-O {[%emt 0:00:09]} 13. a4 {[%emt 0:00:02]} Qb6 {[%emt 0:00:23]} 14. Rb1 {[%emt 0:01:07]} Be6 {[%emt 0:00:47]} 15. Ba3 {[%emt 0:00:06]} Rfd8 {[%emt 0:00:13]} 16. h3 {[%emt 0:01:13]} Nh5 {[%emt 0:00:27]} 17. Qc2 {[%emt 0:00:44]} Bf8 {[%emt 0:00:12]} 18. Rd2 {[%emt 0:01:24]} Qa5 {[%emt 0:03:41]} 19. Rbd1 {[%emt 0:00:59]} b5 {[%emt 0:00:03]} 20. b4 {[%emt 0:01:21]} Qc7 21. c5 {[%emt 0:01:47]} dxc5 {[%emt 0:00:12]} 22. Rxd8 {[%emt 0:00:28]} Rxd8 {[%emt 0:00:01]} 23. Rxd8 {[%emt 0:00:10]} Qxd8 {[%emt 0:00:02]} 24. bxc5 {[%emt 0:00:31]} Qa5 {[%emt 0:00:10]} 25. Nxe5 {[%emt 0:01:22]} b4 {[%emt 0:00:05]} 26. Nc6 {[%emt 0:00:28]} Qxc5 {[%emt 0:00:03]} 27. Nxb4 {[%emt 0:02:30]} a5 {[%emt 0:00:01]} 28. Ncd5 {[%emt 0:02:00]} Bxd5 {[%emt 0:01:17]} 29. Nxd5 {[%emt 0:01:30]} Qxc2 {[%emt 0:00:04]} 0-1

[Event "29th Czech Open-Rapid 2018"]
[Site "Pardubice"]
[Date "2018.07.18"]
[Round "2"]
[White "Boruchovsky, Avital"]
[Black "Turner, Jan"]
[Result "1-0"]
[ECO "A40"]
[WhiteElo "2558"]
[BlackElo "2348"]
[Annotator "RC"]
[PlyCount "39"]
[EventDate "2018.07.18"]
[EventType "swiss"]
[EventCountry "CZE"]
[SourceTitle "playchess.com"]
[Source "ChessBase"]
[SourceQuality "1"]
[TimeControl "900+10"]

1. d4 {[%emt 0:00:00]} Nc6 {[%emt 0:00:00]} 2. Nf3 {[%emt 0:00:00]} d6 {[%emt 0:00:00]} 3. e4 {[%emt 0:00:13]} Nf6 {[%emt 0:00:05]} 4. Nc3 {[%emt 0:00:22]} g6 {[%emt 0:00:01]} 5. Be3 {[%emt 0:00:07]} Bg7 {[%emt 0:00:08]} 6. d5 {[%emt 0:00:16]} Nb8 {[%emt 0:00:02]} 7. h3 {[%emt 0:00:06]} c6 {[%emt 0:00:01]} 8. Be2 {[%emt 0:00:40]} O-O {[%emt 0:00:02]} 9. O-O {[%emt 0:00:02]} cxd5 {[%emt 0:01:55]} 10. exd5 {[%emt 0:00:02]} Nbd7 {[%emt 0:00:15]} 11. Re1 {[%emt 0:00:06]} a6 {[%emt 0:00:20]} 12. a4 {[%emt 0:00:36]} Qc7 {[%emt 0:02:20]} 13. a5 {[%emt 0:02:26]} b5 {[%emt 0:00:15]} 14. axb6 {[%emt 0:00:06]} Nxb6 {[%emt 0:00:02]} 15. Qd4 {[%emt 0:00:01]} Rb8 {[%emt 0:01:21]} 16. Bxa6 {[%emt 0:00:29]} Ng4 {[%emt 0:00:45]} 17. Qf4 {[%emt 0:02:53]} Nxe3 {[%emt 0:00:14]} 18. Rxe3 {[%emt 0:00:14]} Bxa6 {[%emt 0:00:06]} 19. Rxa6 {[%emt 0:00:05]} Nc4 {[%emt 0:00:36]} 20. Rc6 {[%emt 0:00:11]} 1-0

[Event "29th Czech Open-Rapid 2018"]
[Site "Pardubice"]
[Date "2018.07.18"]
[Round "2"]
[White "Deepan Chakkravarthy J"]
[Black "Maltsevskyay, Aleksandra"]
[Result "1-0"]
[ECO "E84"]
[WhiteElo "2519"]
[BlackElo "2297"]
[Annotator "RC"]
[PlyCount "67"]
[EventDate "2018.07.18"]
[EventType "swiss"]
[EventCountry "CZE"]
[SourceTitle "playchess.com"]
[Source "ChessBase"]
[SourceQuality "1"]
[TimeControl "900+10"]

1. c4 {[%emt 0:00:00]} Nf6 {[%emt 0:00:00]} 2. Nc3 {[%emt 0:00:02]} g6 {[%emt 0:00:07]} 3. e4 {[%emt 0:00:11]} d6 {[%emt 0:00:02]} 4. d4 {[%emt 0:00:02]} Bg7 {[%emt 0:00:01]} 5. f3 {[%emt 0:00:02]} O-O {[%emt 0:00:04]} 6. Be3 {[%emt 0:00:02]} Nc6 {[%emt 0:00:07]} 7. Nge2 {[%emt 0:00:08]} a6 {[%emt 0:00:01]} 8. Qd2 {[%emt 0:00:08]} Rb8 {[%emt 0:00:02]} 9. Rb1 {[%emt 0:00:51]} Nd7 {[%emt 0:01:58]} 10. h4 {[%emt 0:00:59]} h5 {[%emt 0:00:23]} 11. b4 {[%emt 0:00:25]} b5 {[%emt 0:00:19]} 12. c5 {[%emt 0:00:12]} e5 {[%emt 0:04:23]} 13. d5 {[%emt 0:00:05]} Ne7 {[%emt 0:00:01]} 14. Ng3 {[%emt 0:01:00]} f5 {[%emt 0:00:26]} 15. exf5 {[%emt 0:00:02]} Nxf5 {[%emt 0:00:30]} 16. Bg5 {[%emt 0:01:18]} Bf6 {[%emt 0:01:27]} 17. Nge4 {[%emt 0:00:02]} Bxg5 18. hxg5 {[%emt 0:00:05]} Qe7 {[%emt 0:01:17]} 19. c6 {[%emt 0:00:19]} Nb6 {[%emt 0:00:02]} 20. Nf6+ {[%emt 0:00:02]} Kg7 {[%emt 0:00:22]} 21. Nce4 {[%emt 0:00:10]} Nd4 {[%emt 0:00:28]} 22. Bd3 {[%emt 0:01:23]} Rh8 {[%emt 0:01:06]} 23. Rh4 {[%emt 0:01:09]} Bf5 {[%emt 0:01:51]} 24. Ng3 {[%emt 0:00:14]} Qf7 {[%emt 0:01:17]} 25. Rxd4 {[%emt 0:00:31]} exd4 {[%emt 0:00:05]} 26. Bxf5 {[%emt 0:00:03]} gxf5 {[%emt 0:01:05]} 27. Nxf5+ {[%emt 0:00:02]} Kf8 {[%emt 0:00:01]} 28. Qxd4 {[%emt 0:00:16]} Rg8 {[%emt 0:01:40]} 29. f4 {[%emt 0:00:15]} Re8+ {[%emt 0:00:27]} 30. Kf2 {[%emt 0:00:18]} Qg6 {[%emt 0:00:12]} 31. Nxe8 {[%emt 0:00:05]} Kxe8 {[%emt 0:00:10]} 32. Qe4+ {[%emt 0:01:00]} Kd8 {[%emt 0:00:01]} 33. Re1 {[%emt 0:00:03]} Qf7 {[%emt 0:00:23]} 34. Nh6 {[%emt 0:01:21]} 1-0

[Event "29th Czech Open-Rapid 2018"]
[Site "Pardubice"]
[Date "2018.07.18"]
[Round "2"]
[White "Geller, Jakov"]
[Black "Zlatin, Alexander"]
[Result "1-0"]
[ECO "C50"]
[WhiteElo "2518"]
[BlackElo "2200"]
[Annotator "RC"]
[PlyCount "93"]
[EventDate "2018.07.18"]
[EventType "swiss"]
[EventCountry "CZE"]
[SourceTitle "playchess.com"]
[Source "ChessBase"]
[SourceQuality "1"]
[TimeControl "900+10"]

1. e4 {[%emt 0:00:00]} e5 {[%emt 0:00:00]} 2. Nf3 {[%emt 0:00:00]} Nc6 {[%emt 0:00:00]} 3. Bc4 {[%emt 0:00:00]} Bc5 {[%emt 0:00:00]} 4. O-O {[%emt 0:00:04]} Nf6 {[%emt 0:00:15]} 5. d3 {[%emt 0:00:02]} h6 {[%emt 0:00:07]} 6. c3 {[%emt 0:00:06]} d6 {[%emt 0:00:06]} 7. Bb3 {[%emt 0:00:12]} a6 {[%emt 0:00:38]} 8. Re1 {[%emt 0:00:02]} Ba7 {[%emt 0:00:07]} 9. Nbd2 {[%emt 0:00:10]} O-O {[%emt 0:00:45]} 10. h3 {[%emt 0:00:03]} Nh5 {[%emt 0:00:15]} 11. Nf1 {[%emt 0:00:04]} Qf6 {[%emt 0:00:05]} 12. Be3 {[%emt 0:02:04]} Nf4 {[%emt 0:00:33]} 13. d4 {[%emt 0:00:57]} Ne7 {[%emt 0:00:50]} 14. Ng3 {[%emt 0:00:10]} Neg6 {[%emt 0:00:13]} 15. Bc2 {[%emt 0:00:07]} Nh4 {[%emt 0:01:52]} 16. Nxh4 {[%emt 0:00:17]} Qxh4 {[%emt 0:00:03]} 17. Qf3 {[%emt 0:00:15]} Qf6 {[%emt 0:02:06]} 18. Nf5 {[%emt 0:00:10]} Bxf5 {[%emt 0:01:21]} 19. exf5 {[%emt 0:00:03]} g5 {[%emt 0:00:56]} 20. g3 {[%emt 0:02:51]} exd4 {[%emt 0:00:39]} 21. cxd4 {[%emt 0:00:03]} Nxh3+ {[%emt 0:00:24]} 22. Kg2 {[%emt 0:01:12]} Bxd4 {[%emt 0:00:21]} 23. Kxh3 {[%emt 0:00:26]} Bxe3 {[%emt 0:00:12]} 24. Qxe3 {[%emt 0:00:12]} Qxb2 {[%emt 0:00:17]} 25. Qd3 {[%emt 0:00:27]} Qf6 {[%emt 0:00:28]} 26. Rab1 {[%emt 0:00:06]} b5 {[%emt 0:00:47]} 27. Qd5 {[%emt 0:00:06]} Qc3 {[%emt 0:00:44]} 28. Bb3 {[%emt 0:00:16]} c5 {[%emt 0:00:27]} 29. Qxd6 {[%emt 0:00:26]} c4 {[%emt 0:01:17]} 30. Qxh6 {[%emt 0:00:27]} Qg7 {[%emt 0:00:02]} 31. Qxg7+ {[%emt 0:00:02]} Kxg7 {[%emt 0:00:01]} 32. Bc2 {[%emt 0:00:02]} Kf6 {[%emt 0:00:07]} 33. Rbd1 {[%emt 0:00:08]} Rfd8 {[%emt 0:00:04]} 34. Kg4 {[%emt 0:00:03]} Rab8 {[%emt 0:00:14]} 35. f4 {[%emt 0:00:15]} gxf4 {[%emt 0:00:10]} 36. Kxf4 {[%emt 0:00:03]} b4 {[%emt 0:00:06]} 37. g4 {[%emt 0:00:03]} Rxd1 {[%emt 0:00:09]} 38. g5+ {[%emt 0:00:02]} Kg7 {[%emt 0:00:02]} 39. f6+ {[%emt 0:00:03]} Kg8 {[%emt 0:00:05]} 40. Rxd1 {[%emt 0:00:10]} b3 {[%emt 0:00:04]} 41. axb3 {[%emt 0:00:08]} cxb3 {[%emt 0:00:00]} 42. Be4 {[%emt 0:01:15]} a5 {[%emt 0:00:13]} 43. g6 {[%emt 0:00:54]} fxg6 {[%emt 0:00:14]} 44. Kg5 {[%emt 0:00:04]} a4 {[%emt 0:00:57]} 45. Kxg6 {[%emt 0:00:13]} b2 {[%emt 0:00:13]} 46. Rh1 {[%emt 0:00:10]} b1=Q {[%emt 0:01:11]} 47. Bxb1 {[%emt 0:00:17]} 1-0

[Event "29th Czech Open-Rapid 2018"]
[Site "Pardubice"]
[Date "2018.07.18"]
[Round "2"]
[White "Potapov, Pavel"]
[Black "Nun, Jiri"]
[Result "1-0"]
[ECO "B22"]
[WhiteElo "2500"]
[BlackElo "2306"]
[Annotator "ChessBase"]
[PlyCount "87"]
[EventDate "2018.07.18"]
[EventType "swiss"]
[EventCountry "CZE"]
[SourceTitle "playchess.com"]
[Source "ChessBase"]
[SourceQuality "1"]
[TimeControl "900+10"]

1. e4 {[%emt 0:00:00]} c5 {[%emt 0:00:00]} 2. c3 {[%emt 0:00:00]} Nf6 {[%emt 0:00:22]} 3. e5 {[%emt 0:00:00]} Nd5 {[%emt 0:00:01]} 4. Bc4 {[%emt 0:00:00]} Nc7 {[%emt 0:00:13]} 5. Nf3 {[%emt 0:00:02]} e6 {[%emt 0:00:07]} 6. d4 {[%emt 0:00:05]} cxd4 {[%emt 0:00:05]} 7. cxd4 {[%emt 0:00:02]} d5 {[%emt 0:00:19]} 8. Bd3 {[%emt 0:00:05]} Be7 {[%emt 0:00:19]} 9. Nc3 {[%emt 0:00:03]} b6 {[%emt 0:00:12]} 10. h4 {[%emt 0:00:44]} Ba6 {[%emt 0:00:28]} 11. h5 {[%emt 0:00:32]} Bxd3 {[%emt 0:00:10]} 12. Qxd3 {[%emt 0:00:02]} h6 {[%emt 0:00:04]} 13. Rh3 {[%emt 0:00:14]} Nc6 {[%emt 0:00:26]} 14. Rg3 {[%emt 0:00:04]} Bf8 {[%emt 0:00:04]} 15. Bf4 {[%emt 0:00:26]} Qd7 {[%emt 0:00:23]} 16. O-O-O {[%emt 0:00:03]} Na5 {[%emt 0:00:47]} 17. b3 {[%emt 0:00:46]} Nc6 {[%emt 0:00:58]} 18. Kb1 {[%emt 0:00:05]} O-O-O {[%emt 0:00:42]} 19. Rc1 {[%emt 0:00:04]} Kb7 {[%emt 0:00:01]} 20. Ne1 {[%emt 0:00:49]} Rc8 {[%emt 0:00:18]} 21. Nc2 {[%emt 0:00:35]} Ne7 {[%emt 0:00:45]} 22. a3 {[%emt 0:00:33]} g5 {[%emt 0:00:34]} 23. hxg6 {[%emt 0:00:08]} Nxg6 {[%emt 0:00:05]} 24. Bd2 {[%emt 0:00:08]} Be7 {[%emt 0:00:09]} 25. Rf3 {[%emt 0:00:16]} Bg5 {[%emt 0:01:41]} 26. Kb2 {[%emt 0:00:10]} Bxd2 {[%emt 0:00:09]} 27. Qxd2 {[%emt 0:00:02]} Nh4 {[%emt 0:00:17]} 28. Rh3 {[%emt 0:00:19]} Qe7 {[%emt 0:00:29]} 29. Rch1 {[%emt 0:00:23]} Ng6 {[%emt 0:01:50]} 30. Rxh6 {[%emt 0:00:04]} Rxh6 {[%emt 0:00:01]} 31. Rxh6 {[%emt 0:00:01]} a5 {[%emt 0:00:10]} 32. g3 {[%emt 0:00:12]} Qf8 {[%emt 0:00:21]} 33. Rh7 {[%emt 0:00:06]} Qg8 {[%emt 0:00:39]} 34. Qh6 {[%emt 0:00:22]} Ne8 {[%emt 0:00:47]} 35. a4 {[%emt 0:00:23]} Rc7 {[%emt 0:00:32]} 36. Na3 {[%emt 0:00:28]} Re7 {[%emt 0:00:20]} 37. Nab5 {[%emt 0:00:08]} Ka6 {[%emt 0:00:35]} 38. Nd6 {[%emt 0:00:42]} Nxd6 {[%emt 0:00:07]} 39. exd6 {[%emt 0:00:01]} Rd7 {[%emt 0:00:01]} 40. Nb5 {[%emt 0:00:08]} Qd8 {[%emt 0:00:11]} 41. Qc1 {[%emt 0:00:43]} Kb7 {[%emt 0:00:31]} 42. f4 {[%emt 0:00:09]} Qf6 {[%emt 0:00:25]} 43. Qc3 {[%emt 0:00:16]} Qf5 {[%emt 0:00:11]} 44. Rh1 {[%emt 0:00:05]} 1-0

[Event "29th Czech Open-Rapid 2018"]
[Site "Pardubice"]
[Date "2018.07.18"]
[Round "2"]
[White "Mirzoev, Emil"]
[Black "Lushnikov, Evgeny"]
[Result "1-0"]
[ECO "E27"]
[WhiteElo "2412"]
[BlackElo "2136"]
[Annotator "NA"]
[PlyCount "81"]
[EventDate "2018.07.18"]
[EventType "swiss"]
[EventCountry "CZE"]
[SourceTitle "playchess.com"]
[Source "ChessBase"]
[SourceQuality "1"]
[TimeControl "900+10"]

1. d4 {[%emt 0:00:00]} Nf6 {[%emt 0:00:00]} 2. c4 {[%emt 0:00:00]} e6 {[%emt 0:00:00]} 3. Nc3 {[%emt 0:00:00]} Bb4 {[%emt 0:00:00]} 4. a3 {[%emt 0:00:00]} Bxc3+ {[%emt 0:00:00]} 5. bxc3 {[%emt 0:00:00]} O-O {[%emt 0:00:27]} 6. f3 {[%emt 0:00:00]} d5 {[%emt 0:00:10]} 7. cxd5 {[%emt 0:00:00]} exd5 {[%emt 0:00:01]} 8. e3 {[%emt 0:00:00]} c5 {[%emt 0:01:14]} 9. Bd3 {[%emt 0:00:14]} b6 {[%emt 0:00:10]} 10. Ne2 {[%emt 0:00:01]} Ba6 11. O-O {[%emt 0:00:05]} Re8 {[%emt 0:00:25]} 12. Ng3 {[%emt 0:00:38]} Bxd3 {[%emt 0:01:02]} 13. Qxd3 {[%emt 0:02:01]} Nc6 {[%emt 0:00:02]} 14. Bb2 {[%emt 0:00:07]} Rc8 {[%emt 0:02:35]} 15. Rae1 {[%emt 0:00:18]} Na5 {[%emt 0:02:27]} 16. e4 {[%emt 0:00:29]} Nc4 {[%emt 0:00:20]} 17. Bc1 {[%emt 0:00:03]} cxd4 {[%emt 0:00:02]} 18. cxd4 {[%emt 0:00:06]} dxe4 {[%emt 0:00:17]} 19. fxe4 {[%emt 0:00:02]} Ne5 {[%emt 0:00:07]} 20. Qd2 {[%emt 0:00:57]} Nc4 {[%emt 0:00:01]} 21. Qf2 {[%emt 0:00:01]} Qd7 {[%emt 0:00:19]} 22. e5 {[%emt 0:01:09]} Nd5 {[%emt 0:01:54]} 23. Nf5 {[%emt 0:00:07]} Rc6 {[%emt 0:00:14]} 24. Qf3 {[%emt 0:00:39]} Rg6 {[%emt 0:02:07]} 25. Nd6 {[%emt 0:01:05]} Nxd6 {[%emt 0:01:47]} 26. Qxd5 {[%emt 0:00:31]} Rge6 {[%emt 0:00:01]} 27. Bb2 {[%emt 0:03:47]} R6e7 {[%emt 0:02:08]} 28. Rc1 {[%emt 0:01:59]} Nb5 {[%emt 0:00:24]} 29. Qe4 {[%emt 0:00:38]} Nc7 {[%emt 0:00:23]} 30. Rc3 {[%emt 0:00:02]} Nd5 {[%emt 0:00:42]} 31. Rh3 {[%emt 0:00:06]} g6 {[%emt 0:00:15]} 32. Qh4 {[%emt 0:00:17]} h5 33. Rg3 Qb5 {[%emt 0:00:27]} 34. Bc1 {[%emt 0:00:25]} Qe2 {[%emt 0:00:01]} 35. Rgf3 {[%emt 0:00:49]} Rc7 {[%emt 0:00:25]} 36. Bg5 {[%emt 0:00:22]} Re6 {[%emt 0:00:15]} 37. Bh6 {[%emt 0:00:16]} Re8 {[%emt 0:00:06]} 38. h3 {[%emt 0:00:17]} Kh7 {[%emt 0:00:17]} 39. Qg5 {[%emt 0:00:22]} Ree7 {[%emt 0:00:05]} 40. Bf8 {[%emt 0:00:10]} f6 {[%emt 0:00:10]} 41. Qh6+ {[%emt 0:00:06]} 1-0